bitfinex/quotes_SOLUSD_20240909
["timestamp","ask_amount","ask_price","bid_price","bid_amount"]
[1725893558468,50.0,127.76,127.72,7.8291]
[1725893559484,50.0,127.74,127.7,7.8308]
[1725893560359,45.0,127.73,127.71,7.8296]
[1725893560567,45.0,127.73,127.7,19.5756]
[1725893561286,45.0,127.73,127.7,27.4061]
[1725893561470,45.0,127.74,127.7,27.4061]
[1725893562104,45.0,127.74,127.67,27.4138]
[1725893562105,57.8297,127.72,127.67,27.4138]
[1725893562274,45.0,127.71,127.67,27.4138]
[1725893562758,45.0,127.71,127.67,19.5812]
[1725893562967,45.0,127.71,127.64,41.1593]
[1725893563183,7.832,127.69,127.64,27.4197]
[1725893563377,45.0,127.68,127.64,27.4197]
[1725893564575,95.0,127.68,127.62,7.8356]
[1725893564765,50.0,127.66,127.62,7.8356]
[1725893564964,50.0,127.66,127.61,19.5896]
[1725893564965,45.0,127.65,127.61,27.4257]
[1725893565170,45.0,127.65,127.62,7.8356]
[1725893565900,45.0,127.65,127.61,19.5896]
[1725893565901,52.834,127.65,127.61,19.5896]
[1725893566072,52.834,127.65,127.58,19.5944]
[1725893566073,50.0,127.64,127.58,19.5944]
[1725893566275,50.0,127.64,127.57,7.8386]
[1725893566497,57.8359,127.62,127.57,7.8388]
[1725893566674,45.0,127.61,127.57,7.8388]
[1725893567076,52.8365,127.61,127.56,7.8394]
[1725893567896,7.837,127.6,127.55,28.2768188]
[1725893568103,45.0,127.59,127.55,28.2768188]
[1725893568309,45.0,127.59,127.55,20.4369188]
[1725893568491,45.0,127.59,127.56,7.8394]
[1725893568825,57.8364,127.61,127.56,7.8394]
[1725893568826,45.0,127.6,127.56,7.8394]
[1725893571805,45.0,127.6,127.57,7.8387]
[1725893571989,52.8364,127.61,127.57,7.8387]
[1725893572480,45.0,127.61,127.57,7.8387]
[1725893575108,45.0,127.61,127.58,7.8381]
[1725893575487,45.0,127.61,127.57,19.5964]
[1725893575488,50.0,127.64,127.59,7.8376]
[1725893576518,29.3989,127.67,127.59,7.8376]
[1725893576519,7.8341,127.65,127.61,7.8363]
[1725893576805,7.8341,127.65,127.6,7.8368]
[1725893576806,57.8341,127.65,127.6,7.8368]
[1725893577110,7.8341,127.65,127.6,7.8368]
[1725893577611,57.8341,127.65,127.6,7.8368]
[1725893577796,7.8348,127.64,127.6,7.8368]
[1725893577991,7.8348,127.64,127.59,27.4309]
[1725893578720,45.0,127.63,127.6,7.8367]
[1725893579011,45.0,127.63,127.59,27.431]
[1725893580587,52.8353,127.63,127.59,27.431]
[1725893581324,7.8358,127.62,127.58,7.8381]
[1725893581609,45.0,127.61,127.57,7.8386]
[1725893581817,45.0,127.61,127.58,7.8381]
[1725893582014,45.0,127.62,127.58,7.8381]
[1725893582239,45.0,127.62,127.6,7.8369]
[1725893582516,45.0,127.63,127.6,7.8369]
[1725893582695,52.8352,127.63,127.59,7.8373]
[1725893582895,7.8357,127.62,127.58,27.4332]
[1725893583107,45.0,127.61,127.58,27.4332]
[1725893584700,52.8364,127.61,127.58,19.5952]
[1725893585499,45.0,127.61,127.6,7.8369]
[1725893585727,45.0,127.61,127.59,7.8373]
[1725893586205,45.0,127.61,127.58,27.4331]
[1725893586390,45.0,127.62,127.58,27.4331]
[1725893587204,45.0,127.62,127.59,7.8375]
[1725893587407,7.8364,127.61,127.58,19.5952]
[1725893587609,45.0,127.6,127.58,19.5952]
[1725893591632,1.36320598,127.66,127.63,7.8346]
[1725893591802,7.8316,127.69,127.6,39.04162277]
[1725893592001,1.36447772,127.69,127.66,7.8332]
[1725893592503,50.0,127.72,127.66,27.416]
[1725893592719,7.8306,127.71,127.66,27.416]
[1725893593611,7.8306,127.71,127.67,7.8326]
[1725893594113,7.831,127.7,127.66,27.416]
[1725893594635,7.8303,127.71,127.67,7.8324]
[1725893594942,50.0,127.72,127.67,7.8324]
[1725893594943,57.8297,127.72,127.67,7.8324]
[1725893595115,9.19330236,127.73,127.68,7.8319]
[1725893595320,65.102,127.74,127.69,19.5785]
[1725893595530,57.8302,127.71,127.66,7.8328]
[1725893595826,7.8309,127.7,127.66,7.8328]
[1725893596338,50.0,127.69,127.64,7.8344]
[1725893596638,50.0,127.69,127.62,43.4745]
[1725893596639,7.833,127.67,127.62,43.4745]
[1725893596939,45.0,127.66,127.63,7.835]
[1725893597322,45.0,127.66,127.64,7.8344]
[1725893597523,45.0,127.67,127.64,7.8344]
[1725893597723,45.0,127.67,127.65,7.8337]
[1725893597930,45.0,127.68,127.65,7.8337]
[1725893598533,95.0,127.69,127.64,19.5856]
[1725893598730,45.0,127.69,127.64,19.5856]
[1725893598933,45.0,127.69,127.66,7.8328]
[1725893599137,52.8309,127.7,127.66,7.8328]
[1725893599639,45.0,127.7,127.64,27.4197]
[1725893600010,7.8318,127.69,127.64,27.4197]
[1725893600328,45.0,127.68,127.64,27.4197]
[1725893600531,45.0,127.68,127.65,7.8337]
[1725893601525,52.8321,127.68,127.64,27.4199]
[1725893602243,7.8327,127.67,127.64,19.5856]
[1725893602417,45.0,127.66,127.64,19.5856]
[1725893602837,45.0,127.66,127.62,16.0501]
[1725893603138,52.8335,127.66,127.61,27.4261]
[1725893603343,52.8335,127.66,127.62,7.8357]
[1725893603658,7.834,127.65,127.61,19.5902]
[1725893603961,45.0,127.64,127.61,19.5902]
[1725893604165,45.0,127.64,127.59,7.8371]
[1725893604334,52.8347,127.64,127.59,7.8371]
[1725893604540,7.8353,127.63,127.58,43.1137]
[1725893604746,45.0,127.62,127.58,43.1137]
[1725893605337,52.8357,127.62,127.58,19.5943]
[1725893605541,52.8357,127.62,127.58,27.4324]
[1725893605840,52.8357,127.62,127.58,19.5943]
[1725893607864,7.8364,127.61,127.57,7.8386]
[1725893608057,45.0,127.6,127.57,7.8386]
[1725893608840,45.0,127.6,127.58,7.8382]
[1725893609157,45.0,127.61,127.58,7.8382]
[1725893609463,45.0,127.61,127.59,7.8375]
[1725893609635,45.0,127.62,127.59,7.8375]
[1725893610640,52.8358,127.62,127.57,19.5966]
[1725893610867,7.8364,127.61,127.57,27.4349]
[1725893611051,45.0,127.6,127.57,27.4349]
[1725893613756,45.0,127.6,127.57,19.5966]
[1725893614360,45.0,127.6,127.58,7.8377]
[1725893614564,45.0,127.6,127.59,7.8376]
[1725893618270,45.0,127.6,127.57,19.5966]
[1725893618271,45.0,127.6,127.58,7.838]
[1725893618452,45.0,127.61,127.58,7.838]
[1725893620378,45.0,127.61,127.57,19.5966]
[1725893620693,45.0,127.61,127.59,27.4307]
[1725893620850,45.0,127.62,127.59,27.4307]
[1725893621155,52.8358,127.62,127.59,27.4307]
[1725893624175,45.0,127.62,127.6,7.8369]
[1725893624379,45.0,127.62,127.59,19.5934]
[1725893624574,9.1986158,127.65,127.59,19.5934]
[1725893624879,7.8342,127.65,127.61,7.8359]
[1725893625102,7.8345,127.64,127.61,7.8359]
[1725893625669,7.8352,127.63,127.59,19.5934]
[1725893626068,45.0,127.62,127.59,27.4305]
[1725893627091,45.0,127.62,127.6,7.8369]
[1725893628371,45.0,127.63,127.6,7.8369]
[1725893629264,45.0,127.63,127.61,7.8362]
[1725893629464,45.0,127.64,127.61,7.8362]
[1725893630891,7.834,127.65,127.61,7.8362]
[1725893631490,7.8347,127.64,127.6,27.4274]
[1725893632377,7.8341,127.65,127.62,7.8357]
[1725893633292,7.8347,127.64,127.6,19.5909]
[1725893633497,7.8341,127.65,127.61,7.8363]
[1725893633692,45.0,127.64,127.61,7.8363]
[1725893634781,52.8346,127.64,127.6,27.4277]
[1725893635109,7.8346,127.64,127.6,27.4277]
[1725893635406,45.0,127.63,127.6,27.4277]
[1725893636807,1.36491058,127.67,127.62,15.60759386]
[1725893637095,22.2319,127.71,127.65,27.4172]
[1725893637096,23.59641647,127.71,127.65,27.4172]
[1725893637276,23.59641647,127.71,127.66,7.8332]
[1725893637277,7.8309,127.7,127.66,7.8332]
[1725893637480,51.09532958,127.71,127.65,19.5834]
[1725893637794,17.55221647,127.71,127.67,7.8325]
[1725893638096,1.36451647,127.71,127.68,7.8319]
[1725893638593,1.36451647,127.71,127.69,7.8314]
[1725893638969,7.8291,127.73,127.69,7.8314]
[1725893639302,57.8291,127.73,127.69,7.8314]
[1725893639498,57.8291,127.73,127.68,7.8319]
[1725893639678,7.8297,127.72,127.67,27.4135]
[1725893640726,45.0,127.71,127.68,7.8318]
[1725893641592,45.0,127.72,127.68,7.8318]
[1725893641920,75.66147241,127.75,127.69,19.5778]
[1725893642127,24.2969,127.75,127.69,19.5778]
[1725893642494,74.2969,127.75,127.69,19.5778]
[1725893643221,74.2969,127.75,127.7,7.8306]
[1725893643938,7.8284,127.74,127.7,7.8306]
[1725893644225,7.8284,127.74,127.69,19.5778]
[1725893644226,57.8295,127.73,127.69,19.5778]
[1725893644515,45.0,127.72,127.69,19.5778]
[1725893644700,45.0,127.72,127.66,19.5828]
[1725893644701,50.0,127.71,127.66,19.5828]
[1725893644893,52.8312,127.7,127.66,27.4156]
[1725893645115,45.0,127.7,127.67,7.8326]
[1725893645336,45.0,127.7,127.66,19.5828]
[1725893645520,45.0,127.7,127.68,7.8315]
[1725893645825,45.0,127.71,127.68,7.8315]
[1725893650106,45.0,127.71,127.66,19.5828]
[1725893650107,52.8302,127.71,127.67,7.8324]
[1725893650431,102.8302,127.71,127.67,7.8324]
[1725893650728,102.8302,127.71,127.66,19.5828]
[1725893650729,95.0,127.71,127.65,15.5583]
[1725893650905,7.8321,127.68,127.64,7.834]
[1725893651107,45.0,127.67,127.64,7.834]
[1725893652126,45.0,127.67,127.65,7.8338]
[1725893652302,57.8317,127.69,127.65,7.8338]
[1725893652303,45.0,127.68,127.65,7.8338]
[1725893654128,45.0,127.68,127.66,7.8327]
[1725893654315,45.0,127.69,127.66,7.8327]
[1725893655206,45.0,127.69,127.67,7.8325]
[1725893655534,45.0,127.7,127.67,7.8325]
[1725893656426,79.57196079,127.75,127.67,19.5812]
[1725893656633,7.8288,127.74,127.7,7.8307]
[1725893659716,45.0,127.73,127.7,7.8307]
[1725893659928,7.8279,127.75,127.7,7.8307]
[1725893661116,57.8285,127.74,127.7,7.8307]
[1725893661320,52.8291,127.73,127.68,15.8497]
[1725893661531,52.8291,127.73,127.69,7.8314]
[1725893662640,7.8298,127.72,127.68,43.2612]
[1725893662822,45.0,127.71,127.68,43.2612]
[1725893664111,45.0,127.71,127.69,7.8313]
[1725893664444,45.0,127.72,127.7,7.8307]
[1725893664620,57.8287,127.74,127.7,7.8307]
[1725893664621,45.0,127.73,127.7,7.8307]
[1725893668555,52.829,127.73,127.69,7.8312]
[1725893669553,1.36462482,127.76,127.72,7.8291]
[1725893669759,7.8278,127.75,127.71,7.8299]
[1725893670066,7.8278,127.75,127.71,27.404]
[1725893670832,45.0,127.74,127.71,27.404]
[1725893671254,1.36468243,127.77,127.72,7.8295]
[1725893671437,1.36468243,127.77,127.75,7.8275]
[1725893671643,7.8257,127.79,127.75,7.8275]
[1725893672230,7.8257,127.79,127.74,19.5695]
[1725893672231,7.8249,127.8,127.76,7.8269]
[1725893672436,57.8249,127.8,127.76,7.8269]
[1725893673155,7.8496753,127.82,127.76,19.5675]
[1725893673350,50.0,127.8,127.76,19.5675]
[1725893673559,57.8249,127.8,127.76,27.3946]
[1725893674358,7.8244,127.81,127.77,7.8265]
[1725893674534,9.1876753,127.82,127.78,7.8259]
[1725893674737,7.8236,127.82,127.78,7.8259]
[1725893675265,7.8236,127.82,127.77,7.8263]
[1725893675461,57.8236,127.82,127.77,7.8263]
[1725893675769,7.8242,127.81,127.76,27.3944]
[1725893676259,7.8248,127.8,127.76,27.3944]
[1725893676648,45.0,127.79,127.77,7.8263]
[1725893676849,45.0,127.8,127.77,7.8263]
[1725893679352,45.0,127.8,127.78,7.8259]
[1725893679558,45.0,127.81,127.78,7.8259]
[1725893680355,50.0,127.85,127.8,7.8242]
[1725893680555,71.6203,127.88,127.8,19.5616]
[1725893680854,7.8217,127.85,127.8,19.5616]
[1725893681176,7.8217,127.85,127.81,7.8238]
[1725893681561,7.8223,127.84,127.8,27.3861]
[1725893682270,7.8217,127.85,127.81,7.8239]
[1725893683157,7.8217,127.85,127.8,19.5616]
[1725893683158,7.8223,127.84,127.8,27.3859]
[1725893683565,7.8229,127.83,127.8,19.5616]
[1725893683880,45.0,127.82,127.8,19.5616]
[1725893685394,45.0,127.82,127.8,27.3862]
[1725893685601,45.0,127.83,127.8,27.3862]
[1725893686083,45.0,127.83,127.8,19.5616]
[1725893686392,45.0,127.83,127.81,7.8235]
[1725893686682,45.0,127.84,127.81,7.8235]
[1725893687091,7.8212,127.86,127.82,7.8234]
[1725893687753,50.0,127.86,127.8,35.0809]
[1725893687963,7.8224,127.84,127.8,42.9051]
[1725893688383,45.0,127.83,127.8,42.9051]
[1725893688762,45.0,127.83,127.81,7.824]
[1725893689366,45.0,127.84,127.81,7.824]
[1725893691570,57.8214,127.86,127.82,7.8234]
[1725893691963,7.8217,127.85,127.81,7.8238]
[1725893692879,45.0,127.84,127.81,7.8238]
[1725893695480,45.0,127.84,127.8,35.0809]
[1725893695481,52.8224,127.84,127.8,27.3858]
[1725893696176,52.8224,127.84,127.81,7.824]
[1725893696411,52.8224,127.84,127.82,7.8234]
[1725893696412,45.0,127.84,127.82,7.8234]
[1725893696677,45.0,127.84,127.81,7.8238]
[1725893697371,45.0,127.84,127.81,9.38848387]
[1725893697569,45.0,127.84,127.8,1.56466168]
[1725893697774,45.0,127.84,127.82,7.823]
[1725893697969,45.0,127.84,127.81,19.5587]
[1725893697970,52.8217,127.85,127.81,27.3825]
[1725893698179,45.0,127.85,127.81,19.5587]
[1725893698474,52.8221,127.85,127.81,27.3827]
[1725893698778,7.8223,127.84,127.81,27.3827]
[1725893698959,45.0,127.83,127.81,27.3827]
[1725893699465,45.0,127.84,127.82,7.8234]
[1725893699874,7.8214,127.86,127.82,7.8234]
[1725893700381,65.5271,127.88,127.83,21.12051038]
[1725893700382,50.0,127.88,127.83,21.12051038]
[1725893700597,57.8202,127.88,127.84,7.8218]
[1725893701264,57.8214,127.86,127.82,7.823]
[1725893701586,50.0,127.86,127.8,27.3848]
[1725893701884,58.93906493,127.88,127.82,19.5582]
[1725893702074,7.8211,127.86,127.82,27.3813]
[1725893702276,7.8208,127.87,127.83,7.8228]
[1725893702479,57.8202,127.88,127.84,7.822]
[1725893702781,50.0,127.88,127.85,7.8215]
[1725893703280,57.8198,127.88,127.84,27.3776]
[1725893703588,57.8198,127.88,127.78,45.49467341]
[1725893703589,50.0,127.86,127.81,19.5591]
[1725893703965,52.8217,127.85,127.81,27.3827]
[1725893704500,45.0,127.85,127.82,7.8235]
[1725893705191,45.0,127.85,127.83,7.8226]
[1725893705372,45.0,127.86,127.83,7.8226]
[1725893706570,57.8199,127.88,127.83,7.8226]
[1725893706769,45.0,127.87,127.83,7.8226]
[1725893707272,7.8192,127.89,127.85,7.8216]
[1725893707571,69.5444,127.92,127.85,7.8216]
[1725893707572,1.36320331,127.91,127.86,7.8205]
[1725893707884,7.8192,127.89,127.85,27.3752]
[1725893709383,45.0,127.88,127.85,27.3752]
[1725893711070,50.0,127.86,127.82,19.5579]
[1725893711270,45.0,127.85,127.82,27.381]
[1725893711883,52.8216,127.85,127.82,19.5579]
[1725893712086,45.0,127.85,127.8,15.6871]
[1725893712662,52.822,127.85,127.81,7.8241]
[1725893713297,7.8222,127.84,127.8,43.0733]
[1725893713588,45.0,127.83,127.8,43.0733]
[1725893714091,45.0,127.83,127.81,7.824]
[1725893714316,45.0,127.84,127.81,7.824]
[1725893714589,45.0,127.84,127.8,35.2487]
[1725893714590,52.8223,127.84,127.8,43.0733]
[1725893714811,52.8223,127.84,127.8,27.3862]
[1725893715169,45.0,127.84,127.81,7.8239]
[1725893716173,45.0,127.84,127.77,16.1736]
[1725893716174,7.8239,127.82,127.77,35.739]
[1725893716373,102.8245,127.81,127.77,43.5653]
[1725893716769,102.8245,127.81,127.77,27.3917]
[1725893716969,45.0,127.81,127.78,7.8258]
[1725893718187,50.0,127.83,127.79,19.5628]
[1725893718565,50.0,127.85,127.79,19.5628]
[1725893719184,50.0,127.85,127.81,19.5596]
[1725893719390,50.0,127.85,127.82,7.8233]
[1725893719592,50.0,127.85,127.81,19.5596]
[1725893720799,45.0,127.84,127.81,19.5596]
[1725893721296,45.0,127.84,127.81,27.3836]
[1725893722082,45.0,127.84,127.76,38.89027341]
[1725893722083,52.8226,127.84,127.8,7.8245]
[1725893722784,45.0,127.84,127.82,7.8234]
[1725893723978,45.0,127.84,127.81,7.8239]
[1725893724181,45.0,127.84,127.8,19.5616]
[1725893724182,45.0,127.84,127.82,7.8234]
[1725893724378,45.0,127.85,127.82,7.8234]
[1725893724594,27.46243864,127.86,127.82,19.5583]
[1725893724783,1.36362689,127.87,127.82,19.5583]
[1725893724986,57.8204,127.87,127.83,7.8224]
[1725893725191,1.36349088,127.86,127.83,7.8224]
[1725893725493,85.28283864,127.87,127.83,7.8224]
[1725893725701,27.46243864,127.86,127.83,7.8224]
[1725893725906,86.64628885,127.87,127.83,7.8224]
[1725893726076,45.0,127.86,127.83,7.8224]
[1725893726395,80.28343864,127.86,127.83,7.8224]
[1725893726801,80.28343864,127.86,127.82,27.3815]
[1725893727299,50.0,127.85,127.79,35.8131]
[1725893727505,45.0,127.84,127.79,35.8131]
[1725893727805,45.0,127.84,127.81,7.824]
[1725893728375,72.46242843,127.84,127.81,7.824]
[1725893728600,72.46242843,127.84,127.79,35.8131]
[1725893728601,7.8229,127.83,127.8,7.8244]
[1725893728807,45.0,127.82,127.78,7.8257]
[1725893729176,80.28612843,127.82,127.78,7.8257]
[1725893731004,72.46242843,127.82,127.78,19.5647]
[1725893731183,72.46242843,127.82,127.79,7.8253]
[1725893732480,80.28592843,127.82,127.78,27.3905]
[1725893734681,80.28592843,127.82,127.79,7.8252]
[1725893735007,80.28592843,127.82,127.78,27.3904]
[1725893736218,7.8253,127.79,127.75,19.5682]
[1725893736384,45.0,127.78,127.76,7.8271]
[1725893737309,45.0,127.79,127.76,7.8271]
[1725893737805,45.0,127.79,127.77,7.8265]
[1725893737985,45.0,127.8,127.77,7.8265]
[1725893738191,45.0,127.8,127.77,27.3928]
[1725893738388,45.0,127.8,127.78,7.8259]
[1725893739312,50.0,127.85,127.78,22.1847]
[1725893739525,16.125511,127.87,127.82,7.8229]
[1725893739810,9.18425021,127.87,127.82,7.8229]
[1725893740310,1.36345021,127.87,127.83,7.8228]
[1725893741007,1.36345021,127.87,127.84,7.8221]
[1725893741524,8.93906493,127.91,127.83,35.6598]
[1725893741893,50.0,127.9,127.83,35.6598]
[1725893742804,57.8191,127.9,127.85,7.8215]
[1725893743030,66.75816493,127.9,127.85,7.8215]
[1725893743200,45.0,127.89,127.85,7.8215]
[1725893744121,50.0,127.88,127.83,19.5565]
[1725893744409,45.0,127.87,127.83,19.5565]
[1725893745401,45.0,127.87,127.83,27.3792]
[1725893746426,52.8205,127.87,127.83,19.5565]
[1725893747025,57.8211,127.86,127.81,7.8238]
[1725893747316,45.0,127.85,127.82,7.8234]
[1725893747519,45.0,127.85,127.83,7.8228]
[1725893747715,7.8206,127.87,127.83,7.8228]
[1725893747716,45.0,127.86,127.83,7.8228]
[1725893749719,45.0,127.86,127.82,19.558]
[1725893749720,50.0,127.9,127.84,19.5549]
[1725893750828,7.8193,127.89,127.84,27.3769]
[1725893751045,57.8199,127.88,127.84,27.3769]
[1725893751924,57.8199,127.88,127.84,19.5549]
[1725893751925,45.0,127.87,127.84,19.5549]
[1725893752627,52.8205,127.87,127.84,19.5549]
[1725893752831,45.0,127.87,127.84,27.377]
[1725893754929,7.8192,127.89,127.85,7.8214]
[1725893756424,45.0,127.88,127.85,7.8214]
[1725893759227,52.8198,127.88,127.84,27.377]
[1725893759418,102.8198,127.88,127.84,27.377]
[1725893760028,7.8204,127.87,127.84,27.377]
[1725893760226,45.0,127.86,127.84,27.377]
[1725893760414,45.0,127.88,127.85,7.8216]
[1725893760610,52.8196,127.89,127.85,7.8216]
[1725893760809,7.8205,127.87,127.84,19.5549]
[1725893761014,95.0,127.86,127.81,19.559]
[1725893761226,7.822,127.85,127.81,19.559]
[1725893761439,52.8224,127.84,127.8,7.8245]
[1725893761608,52.8224,127.84,127.78,25.912]
[1725893761609,102.8224,127.84,127.79,7.8252]
[1725893761940,7.8232,127.83,127.79,7.8252]
[1725893762109,45.0,127.82,127.79,7.8252]
[1725893762436,45.0,127.82,127.8,7.8245]
[1725893762632,45.0,127.83,127.81,7.824]
[1725893762929,95.0,127.84,127.8,19.5615]
[1725893763308,7.8221,127.85,127.81,7.8236]
[1725893763510,57.8224,127.84,127.8,27.3861]
[1725893764234,7.8229,127.83,127.8,19.5615]
[1725893764729,45.0,127.82,127.8,19.5615]
[1725893765730,45.0,127.82,127.8,27.3861]
[1725893766028,45.0,127.83,127.78,14.1738]
[1725893766237,52.8231,127.83,127.79,7.8251]
[1725893767425,45.0,127.83,127.8,7.8246]
[1725893767950,52.8229,127.83,127.79,27.388]
[1725893768637,52.8229,127.83,127.78,7.8258]
[1725893768638,7.8236,127.82,127.78,7.8258]
[1725893768817,45.0,127.81,127.76,19.567]
[1725893769215,7.825,127.8,127.76,27.3937]
[1725893769420,45.0,127.79,127.76,27.3937]
[1725893772032,17.56989946,127.87,127.83,7.8225]
[1725893772244,57.8198,127.88,127.82,19.5578]
[1725893772539,36.64562504,127.89,127.84,19.5551]
[1725893772721,1.36319855,127.89,127.86,7.8209]
[1725893772917,83.88962649,127.9,127.86,7.8209]
[1725893773243,56.4264,127.9,127.86,7.8209]
[1725893773614,64.245,127.9,127.85,7.8215]
[1725893773825,57.8199,127.88,127.83,7.8227]
[1725893774337,7.8199,127.88,127.83,7.8227]
[1725893774725,45.0,127.87,127.83,7.8227]
[1725893775321,52.8205,127.87,127.82,7.8234]
[1725893775726,57.8221,127.85,127.79,16.3606]
[1725893776037,52.8223,127.84,127.79,7.8251]
[1725893776212,52.8223,127.84,127.78,19.5641]
[1725893776213,50.0,127.83,127.78,19.5641]
[1725893776536,52.8237,127.82,127.77,7.8263]
[1725893777125,52.8237,127.82,127.78,7.8258]
[1725893777638,45.0,127.82,127.78,7.8258]
[1725893779153,45.0,127.82,127.8,7.8242]
[1725893779460,24.4134,127.86,127.81,7.8241]
[1725893779635,57.8217,127.85,127.81,7.8241]
[1725893779823,57.8217,127.85,127.8,7.8247]
[1725893780238,7.8223,127.84,127.8,7.8247]
[1725893780448,57.8217,127.85,127.8,7.8247]
[1725893780664,45.0,127.84,127.81,7.8238]
[1725893780950,7.8217,127.85,127.81,7.8238]
[1725893781330,57.8224,127.84,127.8,7.8246]
[1725893782233,45.0,127.83,127.8,7.8246]
[1725893782755,45.0,127.83,127.79,27.3876]
[1725893783251,45.0,127.83,127.8,7.8244]
[1725893785651,45.0,127.84,127.81,7.824]
[1725893786021,74.4133,127.86,127.81,7.824]
[1725893786022,45.0,127.85,127.81,7.824]
[1725893786933,52.8216,127.85,127.81,7.824]
[1725893787336,52.8216,127.85,127.8,7.8245]
[1725893788845,52.8216,127.85,127.81,19.56]
[1725893788846,45.0,127.85,127.81,19.56]
[1725893789355,45.0,127.85,127.81,27.3839]
[1725893790056,7.8206,127.87,127.81,19.56]
[1725893790468,7.8206,127.87,127.83,7.8223]
[1725893791767,27.46081204,127.88,127.83,19.5568]
[1725893792081,50.0,127.9,127.85,19.5528]
[1725893792938,1.36294975,127.91,127.85,19.5528]
[1725893793946,50.0,127.9,127.85,19.5528]
[1725893794146,50.0,127.9,127.87,7.8203]
[1725893794347,45.0,127.89,127.86,7.8206]
[1725893795442,45.0,127.89,127.87,7.8204]
[1725893796264,45.0,127.89,127.85,19.5528]
[1725893796443,52.8195,127.89,127.85,27.3742]
[1725893799466,7.8205,127.87,127.83,7.8224]
[1725893799700,45.0,127.86,127.83,7.8224]
[1725893800747,45.0,127.86,127.84,7.8222]
[1725893800965,45.0,127.87,127.84,7.8222]
[1725893803476,52.8204,127.87,127.84,7.8222]
[1725893803774,52.8204,127.87,127.82,19.5575]
[1725893803775,52.8204,127.87,127.83,7.8227]
[1725893803967,7.8212,127.86,127.82,27.3808]
[1725893804148,45.0,127.85,127.83,7.8228]
[1725893804345,45.0,127.85,127.84,7.8222]
[1725893805269,45.0,127.85,127.83,7.8227]
[1725893805486,45.0,127.86,127.83,7.8227]
[1725893806473,95.0,127.86,127.8,6.1499]
[1725893806676,7.8224,127.84,127.8,7.8246]
[1725893806884,50.0,127.82,127.77,19.5663]
[1725893807094,57.8237,127.82,127.78,7.8259]
[1725893807377,45.0,127.83,127.79,7.8251]
[1725893807378,45.0,127.81,127.79,7.8251]
[1725893807875,52.8235,127.82,127.79,7.8251]
[1725893808079,52.8235,127.82,127.78,7.8257]
[1725893808282,52.8235,127.82,127.77,19.5663]
[1725893808283,95.0,127.82,127.77,19.5663]
[1725893808575,95.0,127.82,127.74,22.0639]
[1725893808765,7.8244,127.81,127.77,7.826]
[1725893809095,45.0,127.8,127.78,7.8258]
[1725893809264,45.0,127.81,127.79,7.8249]
[1725893809454,45.0,127.81,127.78,27.3895]
[1725893809658,45.0,127.81,127.79,7.8252]
[1725893809967,52.8235,127.82,127.78,27.3895]
[1725893811784,52.8235,127.82,127.78,27.3896]
[1725893811785,52.8238,127.82,127.78,27.3896]
[1725893812581,7.823,127.83,127.79,7.8249]